Cogmind - Beta 16 @@@ ROGUE MODE // 2025.10.27 @ 23:52:30 Player: ktur Result: Destroyed by H-66 Slayer with Heavy Assault Rifle Performance ------------- Evolutions (5) 2500 Regions Visited (7) 1400 Robots Destroyed (62) 310 Value Destroyed (2131) 2131 Prototype IDs (16) 320 Alien Tech Used (0) 0 Bonus (2800) 2800 TOTAL SCORE: 9461 Bonus ------- Delivered SUBCON Basin 2000 Registered with UFD 300 Met Optimus in HQ 500 Cogmind --------- Core Integrity 0/1000 Matter 246/300 Energy 83/100 System Corruption 20% Temperature Cool (0) Movement Core (400) Ox7 Location -5/Factory Parts ------- > --- POWER (2) -------- (None) > --- PROPULSION (3) --- (None) > --- UTILITY (10) ----- Large Storage Unit Improved Signal Interpreter Core Analyzer Improved Hacking Suite Authchip [Propulsion] Machine Rigger > --- WEAPON (2) ------- (None) > --- INVENTORY (15) --- Gyrokinetic Inverter Combat Gravmag System High-capacity Storage Unit Improved Utility Shielding Authchip [Propulsion] Authchip [Processor] Stealth Drone Bay (2/2) Enhanced Hardcell Cannon CPS Tube (2) CPS Tube (2) CPS Tube (2) Multitool Companion Sword DRS Beacon (Ready) Peak State ------------ > --- POWER ------------ Micro Nuclear Core Micro Fission Core > --- PROPULSION ------- Makeshift Leg Improved VSS Leg Arachnoskeleton > --- UTILITY ---------- High-capacity Storage Unit Improved Melee Analysis Suite Core Analyzer Transmission Jammer Hardened Heavy Armor Plating Hacking Suite Makeshift Hacking Suite Authchip [Armor] Tech Extrapolator > --- WEAPON ----------- Companion Sword > --- INVENTORY -------- Micro Nuclear Core Wheel Combat Gravmag System Combat Gravmag System Combat Gravmag System Combat Gravmag System Large Storage Unit Improved Utility Shielding Authchip [Propulsion] Authchip [Propulsion] Authchip [Processor] Advanced Assault Cannon Subdweller Shrapnel Launcher CPS Tube CPS Tube CPS Tube CPS Tube Multitool DRS Beacon [Rating: 91] Favorites ----------- Power Ion Engine Engine Ion Engine Power Core Micro Nuclear Core Propulsion Light Treads Treads Light Treads Leg Arachnoskeleton Wheel Wheel Hover Unit Combat Gravmag System Utility Humpback Device Shield Generator Storage Humpback Processor Core Analyzer Hackware Hacking Suite Protection Improved Utility Shielding Weapon Subdweller Machine Gun Energy Gun Medium Laser Energy Cannon Subdweller Beam Cannon Ballistic Gun Subdweller Machine Gun Launcher Subdweller Shrapnel Launcher Special Weapon Mining Laser Slashing Weapon Companion Sword Build | -11 -10 -10 -7 -7 -5 -5 -5 ------- Run | Yrd Mat Sub Rec Scr Fac Was Fac Slots Evolved 10 | . . . . . 10 . . Power 1 | . . . . . 1 . . Propulsion 1 | . . . . . 1 . . Utility 8 | . . . . . 8 . . Weapon . | . . . . . . . . Parts Attached 75 | 7 3 16 1 6 28 5 9 Power 13 | 1 . . 1 2 6 1 2 Engine 5 | 1 . . 1 1 1 . 1 Core 8 | . . . . 1 5 1 1 Reactor . | . . . . . . . . Propulsion 16 | 2 . 4 . 2 7 1 . Treads 5 | 2 . 2 . 1 . . . Leg 4 | . . . . . 4 . . Wheel 3 | . . 2 . 1 . . . Hover 4 | . . . . . 3 1 . Flight . | . . . . . . . . Utility 31 | 2 3 3 . . 14 3 6 Device 11 | 1 1 2 . . 2 2 3 Storage 5 | 1 2 1 . . 1 . . Processor 6 | . . . . . 5 . 1 Hackware 6 | . . . . . 3 1 2 Protection 3 | . . . . . 3 . . Artifact . | . . . . . . . . Weapon 15 | 2 . 9 . 2 1 . 1 Energy Gun 3 | 1 . 2 . . . . . Energy Cannon 3 | . . 2 . . 1 . . Ballistic Gun 3 | 1 . 2 . . . . . Ballistic Cannon . | . . . . . . . . Launcher 2 | . . 2 . . . . . Special Weapon 2 | . . 1 . . . . 1 Impact Weapon . | . . . . . . . . Slashing Weapon 2 | . . . . 2 . . . Piercing Weapon . | . . . . . . . . Special Melee Weapon . | . . . . . . . . Unidentified Prototypes 3 | . . . . 1 1 1 . Corrupted Parts 3 | . . . . . 1 1 1 System Corruption 8 | . . . . . 2 5 1 Parts Lost 27 | . . 4 . . 13 . 10 Power 7 | . . . . . 4 . 3 Propulsion 7 | . . 2 . . 4 . 1 Utility 11 | . . 1 . . 5 . 5 Weapon 2 | . . 1 . . . . 1 Highest Loss Streak 8 | . . 3 . . 8 . 5 To Critical Strikes . | . . . . . . . . Average Backups 19 | 4 9 14 17 29 17 13 12 Power 2 | . 1 2 3 2 . . . Propulsion 2 | 3 4 1 2 4 3 1 1 Utility 6 | . 1 3 6 11 6 5 5 Weapon 5 | . 2 5 5 6 2 2 1 Tool/Special . | . . . . . . . . Unused Backups 32 | . 2 7 2 8 3 3 7 Power 7 | . . 2 . 5 . . . Propulsion 5 | . 2 1 . . 1 . 1 Utility 9 | . . 2 1 2 1 1 2 Weapon 7 | . . 2 1 1 1 1 1 Tool/Special 4 | . . . . . . 1 3 Average Slot Usage (%) 80 | . 100 94 85 59 72 63 67 Engine 12 | . 14 14 14 13 . . 3 Treads 11 | . 28 16 . 7 . . . Wheel 10 | . . 11 28 10 . . . Device 5 | . 14 8 . . 7 5 5 Storage 13 | . 14 14 14 14 5 5 5 Processor 1 | . . . . . 15 11 11 Hackware 1 | . . . . . 9 11 11 Energy Gun 1 | . 14 3 . . . . . Energy Cannon 3 | . . 6 . . . . . Ballistic Gun 10 | . 14 16 28 1 . . . Slashing Weapon 4 | . . . . 11 5 5 4 Peak Build Rating 91 | 7 10 33 34 32 91 67 72 Average Rating 24 | 5 7 16 28 24 76 59 62 On Entrance 26 | . 7 10 33 17 32 51 64 Avg Prop Armor Cover (%) 4 | . . 4 3 . . 8 . Naked Turns . | . . . . . . . . Heaviest Build 214 | 15 31 213 213 214 79 39 41 Greatest Support 87 | 40 40 40 30 42 87 42 42 Greatest Overweight (x) 21 | . . 21 21 7 1 . 7 Average Overweight (x) 4 | . . 5 16 6 . . . Largest Inventory Capacity 35 | 8 15 35 35 35 35 15 15 Average Capacity 26 | 7 10 22 35 35 19 15 15 Most Carried 35 | 7 15 35 35 35 35 15 15 Average Carried 23 | 4 9 19 31 32 19 14 14 Final Capacity 35 | 8 15 35 35 35 15 15 15 Final Carried 35 | 7 15 35 23 35 15 15 15 Class Distribution -------------------- 56% | Hauler-Mutant 29% | Mutant 8% | Scavenger-Mutant 3% | Derelict-Mutant Dominant Class ---------------- Mutant | -10/Materials Mutant | -10/Subcaves Hauler-Mutant | -7/Recycling Hauler-Mutant | -7/Scraptown Derelict-Mutant | -5/Factory Mutant | -5/Waste Mutant | -5/Factory Resources | -11 -10 -10 -7 -7 -5 -5 -5 ----------- Run | Yrd Mat Sub Rec Scr Fac Was Fac Matter Collected 1647 | 264 70 487 42 70 308 . 406 Remotely . | . . . . . . . . Salvage Created 2638 | 67 127 728 62 . 1140 . 514 Parts 138 | 9 14 52 1 . 38 . 24 Haulers Intercepted 4 | . 1 . . . 2 . 1 Recyclers Shooed 1 | . 1 . . . . . . Parts Field Recycled . | . . . . . . . . Retrieved Matter . | . . . . . . . . Parts Self-Destructed 9 | . . 9 . . . . . Prevented . | . . . . . . . . Parts Restored . | . . . . . . . . Kills | -11 -10 -10 -7 -7 -5 -5 -5 ------- Run | Yrd Mat Sub Rec Scr Fac Was Fac Combat Hostiles Destroyed 47 | . 4 16 1 . 15 . 11 Melee 13 | . . . . . 10 . 3 Guns 12 | . 4 7 1 . . . . Cannons 4 | . . 4 . . . . . AOE 17 | . . 4 . . 5 . 8 Classes Destroyed 13 | 1 3 4 1 . 2 . 2 Worker 2 | . . . . . . . 2 Tunneler 5 | 4 . . . . 1 . . Hauler 4 | . 1 . . . 2 . 1 Recycler 2 | . . . . . 1 . 1 Turret 2 | . . 2 . . . . . Swarmer 12 | . 3 4 . . . . 5 Grunt 16 | . 1 . . . 10 . 5 Duelist 1 | . . . . . . . 1 Sentry 2 | . . . 1 . 1 . . Programmer 4 | . . . . . 4 . . Artisan 1 | . . 1 . . . . . Cobbler 1 | . . 1 . . . . . Subdweller 12 | . . 12 . . . . . Best Kill Streak 8 | 1 3 6 1 . 6 . 8 Combat Bots Only 8 | . 3 4 1 . 5 . 8 Max Kills in Single Turn 4 | 1 2 4 1 . 3 . 4 Gunslinging 1 | . 1 . . . . . . Exploded 4 | . . 4 . . 3 . 4 Melee 1 | . . . . . 1 . 1 Uniques/NPCs Destroyed . | . . . . . . . . Combat | -11 -10 -10 -7 -7 -5 -5 -5 -------- Run | Yrd Mat Sub Rec Scr Fac Was Fac Hostile Shots Fired 368 | . 9 71 18 . 200 . 70 Missed 112 | . 3 17 5 . 63 . 24 Hits 256 | . 6 54 13 . 137 . 46 Melee 16 | . . . . . 6 . 10 Projectile 240 | . 6 54 13 . 131 . 36 AOE 3 | . . . . . 2 . 1 Critical Strikes 19 | . . . . . 14 . 5 Part Disruptions 1 | . . . . . 1 . . Damage Taken 5232 | . 52 869 98 . 2985 . 1228 Core 1177 | . . 144 29 . 447 . 557 Absorbed by Shields 275 | . . 189 . . 58 . 28 Redirected to Shielding 90 | . . . . . 90 . . Core Remaining (%) 65 | 100 . . . 30 . . . Volleys Fired 156 | 9 10 116 8 . 4 . 9 Largest 2 | 2 2 2 2 . 1 . 1 Hottest 160 | 70 70 160 60 . 81 . 40 Shots Fired 221 | 18 20 154 16 . 4 . 9 Gun 131 | 18 20 77 16 . . . . Cannon 43 | . . 42 . . 1 . . Launcher 16 | . . 4 . . 3 . 9 Special 31 | . . 31 . . . . . Kinetic 95 | 9 10 48 16 . 3 . 9 Thermal 124 | 9 10 105 . . . . . Explosive 1 | . . 1 . . . . . Electromagnetic 1 | . . . . . 1 . . Robot Hit Streak 18 | 3 6 14 14 . 18 . 6 Robot Miss Streak 4 | 3 4 2 . . . . 1 Penetration Max . | . . . . . . . . Secondary Targets 1 | . 1 . . . . . . Max Gunslinging Chain 1 | . 1 . . . . . . Shots Hit Robots 183 | 8 13 76 5 . 52 . 29 Core Hits 102 | 4 7 33 3 . 30 . 25 Critical Kills 2 | . . 2 . . . . . Critical Parts Destroyed . | . . . . . . . . Critical Strikes 6 | . . 4 . . . . 2 Meltdown 1 | . . 1 . . . . . Destroy 3 | . . 3 . . . . . Melee Attacks 112 | . . . . . 70 . 42 Impact . | . . . . . . . . Slashing 112 | . . . . . 70 . 42 Piercing . | . . . . . . . . Sneak Attacks 8 | . . . . . 4 . 4 Combat Hostiles . | . . . . . . . . Follow-up Attacks 1 | . . . . . . . 1 Damage Inflicted 7877 | 116 178 2021 94 . 2867 . 2601 Guns 1158 | 116 174 774 94 . . . . Cannons 884 | . . 853 . . 31 . . Explosions 2572 | . . 394 . . 674 . 1504 Melee 3238 | . . . . . 2141 . 1097 Ramming 25 | . 4 . . . 21 . . Kinetic 2887 | 79 87 772 94 . 674 . 1181 Thermal 1373 | 37 87 1249 . . . . . Explosive 323 | . . . . . . . 323 Electromagnetic 31 | . . . . . 31 . . Impact . | . . . . . . . . Slashing 3238 | . . . . . 2141 . 1097 Piercing . | . . . . . . . . Highest Corruption 20 | . . . . . 13 18 20 Average Corruption 14 | . . . . . 8 13 18 Corruption Purged . | . . . . . . . . Corruption Blocked . | . . . . . . . . Effects 39 | . . . . . 14 5 20 Message Errors 9 | . . . . . 3 2 4 Matter Fused 12 | . . . . . 4 . 8 Heat Flow Errors 5 | . . . . . 3 2 . Energy Discharges 4 | . . . . . . 1 3 Parts Rejected 1 | . . . . . . . 1 Parts Fused 1 | . . . . . . . 1 Data Loss (minor) 3 | . . . . . 2 . 1 Data Loss (major) 2 | . . . . . . . 2 Misdirections 2 | . . . . . 2 . . Overload Shots . | . . . . . . . . Overflow Damage 529 | . . 15 . . 250 . 264 Projectiles . | . . . . . . . . Explosions 269 | . . 15 . . . . 254 Melee 260 | . . . . . 250 . 10 Knockbacks . | . . . . . . . . Impact . | . . . . . . . . Kinetic . | . . . . . . . . Secondary . | . . . . . . . . Self-Inflicted Damage 266 | . . 34 . . 37 . 195 Shots 6 | . . 1 . . 1 . 4 Rammed 2 | 1 1 . . . . . . Targets Rammed 5 | 1 1 . . . 3 . . Kicked 3 | . . . . . 3 . . Crushed . | . . . . . . . . Highest Temperature 255 | 45 63 156 13 . 239 255 17 Average Temperature 50 | 16 26 40 6 . 82 105 8 Received Heat Transfer 1092 | . . 150 24 . 705 . 213 Siege Activations . | . . . . . . . . Martial Activations . | . . . . . . . . Shielding Activations . | . . . . . . . . Robots Disrupted . | . . . . . . . . Combat Hostiles . | . . . . . . . . Robots Corrupted . | . . . . . . . . Combat Hostiles . | . . . . . . . . Parts Fried . | . . . . . . . . Impact Corruptions . | . . . . . . . . Robots Melted 1 | . . 1 . . . . . Combat Hostiles 1 | . . 1 . . . . . Parts Melted 2 | . . 2 . . . . . Heat Transferred 2090 | 111 259 1720 . . . . . Parts Sabotaged . | . . . . . . . . Parts Stolen . | . . . . . . . . Parts Stripped . | . . . . . . . . Power Chain Reactions . | . . . . . . . . Alert | -11 -10 -10 -7 -7 -5 -5 -5 ------- Run | Yrd Mat Sub Rec Scr Fac Was Fac Maximum Alert Level 2 | . . . . . 1 . 2 Low Security (%) 90 | 100 100 . 100 . 99 100 50 Level 1 8 | . . . . . . . 46 Level 2 . | . . . . . . . 3 Level 3 . | . . . . . . . . Level 4 . | . . . . . . . . Level 5 . | . . . . . . . . High Security . | . . . . . . . . Max Security . | . . . . . . . . Peak Influence 416 | 5 70 . 60 . 209 65 416 Initial 65 | . 3 . 45 . . 65 . Average 52 | . 19 . 8 . 43 26 192 Influence Increases 1596 | 20 101 120 113 . 594 . 648 Destroy 0b10 Robot/C 740 | . 80 120 20 . 300 . 220 Destroy 0b10 Robot/NC 65 | 20 5 . . . 20 . 20 Destroy Leader 78 | . 12 . . . 44 . 22 Successful Hack 83 | . 4 . . . 79 . . Select Force Hacks 90 | . . . 90 . . . . Disable Machine 75 | . . . . . . . 75 Destroy Structure 195 | . . . 3 . 76 . 116 Lose Combat Pursuer 270 | . . . . . 75 . 195 Influence Decreases 1222 | 15 106 26 207 . 406 188 274 Entered New Map 174 | . 2 . 49 . . 123 . Time Decay 826 | 15 104 16 158 . 294 45 194 Lost Part 192 | . . 10 . . 102 . 80 Lost Ally 30 | . . . . . 10 20 . Squads Dispatched 10 | . 1 . . . 3 . 6 Investigation 5 | . . . . . 1 . 4 Extermination 1 | . . . . . 1 . . Reinforcement 4 | . 1 . . . 1 . 2 Assault . | . . . . . . . . Garrison . | . . . . . . . . Intercept . | . . . . . . . . Searches Triggered . | . . . . . . . . Construction Impeded . | . . . . . . . . Haulers Reinforced 1 | . . . . . 1 . . Active Scanning Responses . | . . . . . . . . Cargo Convoy Interrupts . | . . . . . . . . Stealth | -11 -10 -10 -7 -7 -5 -5 -5 --------- Run | Yrd Mat Sub Rec Scr Fac Was Fac Distress Signals 1 | . . . . . . . 1 Communications Jammed 47 | . . . . . 14 . 33 Distress Signals 47 | . . . . . 14 . 33 Times Spotted 98 | . 8 19 1 . 34 6 30 Peak Tracking Total 9 | . 5 6 1 . 9 5 9 Tactical Retreats 11 | . . . . . 4 1 6 Traps | -11 -10 -10 -7 -7 -5 -5 -5 ------- Run | Yrd Mat Sub Rec Scr Fac Was Fac Traps Triggered 3 | . . 1 . . 1 . 1 Indirectly . | . . . . . . . . Trap Hack Attempts . | . . . . . . . . Triggered . | . . . . . . . . Disarmed . | . . . . . . . . Reprogrammed . | . . . . . . . . Reused 1 | . . 1 . . . . . Traps Extracted . | . . . . . . . . Installed 1 | . . 1 . . . . . Triggered . | . . . . . . . . Most Traps Carried 1 | . . 1 . . . . . Objects Rigged 1 | . . . . . . . 1 Machines | -11 -10 -10 -7 -7 -5 -5 -5 ---------- Run | Yrd Mat Sub Rec Scr Fac Was Fac Machines Disabled 9 | . . 4 . . . . 5 Max in Single Turn 3 | . . 3 . . . . 3 Garrison Access 1 | . . . . . 1 . . Machines Repaired . | . . . . . . . . Machines Dismantled . | . . . . . . . . Machines Sabotaged . | . . . . . . . . Overloaded Fab Kills . | . . . . . . . . Hacking | -11 -10 -10 -7 -7 -5 -5 -5 --------- Run | Yrd Mat Sub Rec Scr Fac Was Fac Machines Accessed 24 | . 3 4 3 4 5 . 5 Terminals 8 | . 3 . . . 4 . 1 Fabricators 1 | . . . . . . . 1 Repair Stations . | . . . . . . . . Recycling Units 6 | . . . 3 . . . 3 Scanalyzers . | . . . . . . . . Garrison Access 1 | . . . . . 1 . . Total Hacks 52 | . 8 7 3 9 13 . 12 Successful 33 | . 2 7 3 9 8 . 4 Failed 19 | . 6 . . . 5 . 8 Catastrophic 6 | . . . . . 2 . 4 Database Lockouts . | . . . . . . . . Manual 25 | . 5 . 3 . 8 . 9 Terminals 21 | . 8 . . . 12 . 1 Fabricators 6 | . . . . . . . 6 Repair Stations . | . . . . . . . . Recycling Units 8 | . . . 3 . . . 5 Scanalyzers . | . . . . . . . . Garrison Access 1 | . . . . . 1 . . Terminal Hacks 21 | . 2 7 . 9 3 . . Record 8 | . . 4 . 4 . . . Part Schematic 1 | . . . . . 1 . . Robot Analysis 4 | . . . . 4 . . . Open Door 2 | . . 1 . 1 . . . Branch Access Points 1 | . . . . . 1 . . Locate Traps 2 | . 1 . . . 1 . . Patrol Status 1 | . 1 . . . . . . Proto ID Catalog 1 | . . 1 . . . . . Release Object 1 | . . 1 . . . . . Fabricator Hacks 2 | . . . . . . . 2 Load Schematic 1 | . . . . . . . 1 Build 1 | . . . . . . . 1 Repair Station Hacks . | . . . . . . . . Recycling Unit Hacks . | . . . . . . . . Scanalyzer . | . . . . . . . . Garrison Access Hacks 1 | . . . . . 1 . . Seal Access 1 | . . . . . 1 . . Unauthorized Hacks 9 | . . . 3 . 4 . 2 Terminals 4 | . . . . . 4 . . Track 1 | . . . . . 1 . . Assimilate 1 | . . . . . 1 . . Botnet 2 | . . . . . 2 . . Fabricators . | . . . . . . . . Repair Stations . | . . . . . . . . Recycling Units 5 | . . . 3 . . . 2 Tunnel 3 | . . . 3 . . . . Fedlink 2 | . . . . . . . 2 Scanalyzers . | . . . . . . . . Garrison Access . | . . . . . . . . Data Cores Recovered . | . . . . . . . . Used . | . . . . . . . . Hacking Detections 9 | . 3 . . . 4 . 2 Full Trace Events 3 | . . . . . 1 . 2 Feedback Events 1 | . . . . . 1 . . Corruption 1 | . . . . . 1 . . Feedback Blocked . | . . . . . . . . Robot Schematics Acquired . | . . . . . . . . Robots Built . | . . . . . . . . Authchips . | . . . . . . . . Time . | . . . . . . . . Total Robot Build Rating . | . . . . . . . . Part Schematics Acquired 12 | . . . . . 4 2 6 Parts Built 1 | . . . . . . . 1 Authchips 1 | . . . . . . . 1 Time 93 | . . . . . . . 93 Total Part Build Rating 7 | . . . . . . . 7 Part Studies Acquired . | . . . . . . . . Parts Repaired . | . . . . . . . . Time . | . . . . . . . . Parts Recycled . | . . . . . . . . Recycled Matter . | . . . . . . . . Retrieved Matter . | . . . . . . . . Retrieved Components . | . . . . . . . . Parts Scanalyzed . | . . . . . . . . Part Schematics Acquired . | . . . . . . . . Parts Damaged . | . . . . . . . . Bothacking | -11 -10 -10 -7 -7 -5 -5 -5 ------------ Run | Yrd Mat Sub Rec Scr Fac Was Fac Used RIF Installer . | . . . . . . . . Robots Hacked . | . . . . . . . . Non-combat . | . . . . . . . . Combat . | . . . . . . . . Robot Hacks Applied . | . . . . . . . . Relay Couplers Released . | . . . . . . . . Fabnet Peak Effective % . | . . . . . . . . Robots Rewired . | . . . . . . . . Allies Hacked 1 | . . . . . 1 . . Hacks Repelled . | . . . . . . . . Allies | -11 -10 -10 -7 -7 -5 -5 -5 -------- Run | Yrd Mat Sub Rec Scr Fac Was Fac Total Allies 2 | . . . . . 1 1 . Largest Group 1 | . . . . . 1 1 . Highest-Rated Group 31 | . . . . . 26 31 . Highest-Rated Ally 31 | . . . . . 26 31 . Total Orders 3 | . . . . . 3 . . STAY 2 | . . . . . 2 . . FOLLOW 1 | . . . . . 1 . . Ally Attacks 5 | . . . . . . 5 . Total Damage 62 | . . . . . . 62 . Kills . | . . . . . . . . Allies Corrupted 1 | . . . . . 1 . . Allies Melted . | . . . . . . . . Intel | -11 -10 -10 -7 -7 -5 -5 -5 ------- Run | Yrd Mat Sub Rec Scr Fac Was Fac Active Infowar (turns) 3292 | 128 322 1679 . . 773 80 310 Sensors 66 | . . . . . . . 66 Seismic 2437 | 128 322 1679 . . 308 . . Jamming 1067 | . . . . . 743 80 244 Robot Analysis Total 4 | . . . . 4 . . . Derelict Logs Recovered 7 | . . 2 . 5 . . . Drone Launches . | . . . . . . . . Drone Recoveries . | . . . . . . . . Exploration | -11 -10 -10 -7 -7 -5 -5 -5 ------------- Run | Yrd Mat Sub Rec Scr Fac Was Fac Turns Passed 14235 | 211 378 6938 820 4490 778 114 506 Spaces Moved 6375 | 106 207 2877 236 1861 513 129 446 Core 5 | 4 . . . . . . 1 Treads 2628 | 102 207 2074 . 245 . . . Legs 361 | . . . . . 361 . . Wheels 2655 | . . 803 236 1616 . . . Hover 726 | . . . . . 152 129 445 Flight . | . . . . . . . . Fastest Speed 50 | 50 160 125 179 179 74 74 74 Average Speed 204 | 155 160 220 332 238 99 74 75 Slowest Speed 472 | 160 160 395 395 472 195 77 400 Overloaded Moves . | . . . . . . . . Propulsion Burnouts . | . . . . . . . . Robots Hopped 2 | . . . . 2 . . . Potential Cave-ins . | . . . . . . . . Cave-ins Triggered . | . . . . . . . . Exploration Rate (%) 44 | 5 35 95 24 93 12 78 14 Regions Visited 7 Branch Regions 3 Pre-discovered Areas 6 | . . 1 3 1 . . 1 Known Exits Taken . | . . . . . . . . Unknown Exits Taken 5 | 1 1 1 1 1 . . . Scrap Searched 22 | . . 12 . 10 . . . Spaces Dug 20 | . . . 2 . 8 . 10 Terrain Destroyed 147 | . . 45 4 . 39 . 59 Melee 17 | . . . . . 8 . 9 Projectile 6 | . . 2 4 . . . . AOE 124 | . . 43 . . 31 . 50 Terrain Rammed . | . . . . . . . . Walls Destroyed . | . . . . . . . . Machines Disabled . | . . . . . . . . Actions | -11 -10 -10 -7 -7 -5 -5 -5 --------- Run | Yrd Mat Sub Rec Scr Fac Was Fac Total 7146 | 130 234 3238 257 1915 677 147 548 Wait 228 | 1 . 160 3 1 22 8 33 Move 6365 | 105 206 2876 235 1856 513 128 446 Hop 2 | . . . . 2 . . . Pick Up 94 | 7 10 33 6 26 9 1 2 Fast Attach 35 | 7 . 3 . 4 9 4 8 Attach 36 | . . 8 1 2 22 . 3 Detach 14 | . . 1 . 5 5 1 2 Swap 30 | . 3 20 . 1 4 1 1 Drop 67 | . 4 20 4 18 16 4 1 Fire 156 | 9 10 116 8 . 4 . 9 Melee 111 | . . . . . 70 . 41 Ram . | . . . . . . . . Kick 3 | . . . . . 3 . . Crush 2 | 1 1 . . . . . . Escape Stasis . | . . . . . . . . Rewire . | . . . . . . . . Trap 2 | . . 1 . . . . 1 Miscellaneous 1 | . . . . . . . 1 Route ------- -11/Scrapyard -10/Materials (discovered 2 exits: [*Mat] / *Sub) -10/Subcaves (discovered 3 exits: [*Mat x2] / *Rec) -7/Recycling -7/Scraptown (discovered 2 exits: *Fac x2) -5/Factory (discovered 3 exits: *Fac / Upp x2) -5/Waste -5/Factory History --------- Turn | Location | Event 7 | -11/Scrapyard | Discovered new exit (range 13) 212 | -11/Scrapyard | Entered Materials 308 | -10/Materials | Build established: Mutant 363 | -10/Materials | Discovered new exit (range 16) 578 | -10/Materials | Discovered new exit (range 7) 590 | -10/Materials | Entered Subcaves 922 | -10/Subcaves | Learned 8 Materials zone layouts 1395 | -10/Subcaves | Learned 4 Materials zone layouts 1478 | -10/Subcaves | A swath of the cavern ceiling suddenly collapsed 1614 | -10/Subcaves | A swath of the cavern ceiling suddenly collapsed 1746 | -10/Subcaves | Learned location of Zion (-7) 1746 | -10/Subcaves | Met a Zionite searching for "candidates" 1776 | -10/Subcaves | Ambushed by angry Subdweller bent on revenge 2059 | -10/Subcaves | Discovered new exit (range 11) 2081 | -10/Subcaves | Discovered new exit (range 9) 3308 | -10/Subcaves | Visited 4L-MR0's lab 3405 | -10/Subcaves | Visited Clippyterm 3410 | -10/Subcaves | Learned Research machine intel 3550 | -10/Subcaves | Lost 3 parts (1n1u1w) 3563 | -10/Subcaves | Shifting Twisted Machinery released Flamer 3595 | -10/Subcaves | Shifting Twisted Machinery released Scrap Shield 3613 | -10/Subcaves | Shifting Twisted Machinery released Flamer 3817 | -10/Subcaves | Build established: Scavenger-Mutant 4655 | -10/Subcaves | Core integrity fell below 50% 4658 | -10/Subcaves | Discovered new exit (range 16) 4788 | -10/Subcaves | Disturbed a concealed Subdweller 5130 | -10/Subcaves | Build established: Hauler-Mutant 5762 | -10/Subcaves | Found SUBCON Basin 6354 | -10/Subcaves | Found Arachnoskeleton 7528 | -10/Subcaves | Entered Recycling 8020 | -7/Recycling | Scanned before Scraplab entrance 8075 | -7/Recycling | Entered Scraplab 8344 | -7/Recycling | Discovered new exit (range 2) 8348 | -7/Recycling | Entered Scraptown 8776 | -7/Scraptown | Visited UFD Registry 8776 | -7/Scraptown | Registered with UFD as "Softcase" 8847 | -7/Scraptown | Visited CPS Storage 8894 | -7/Scraptown | Visited Red Mages 9794 | -7/Scraptown | Discovered new exit (range 5) 9934 | -7/Scraptown | Scanned Subdweller tech in exchange for log data 9939 | -7/Scraptown | Learned Factory terminal intel 9941 | -7/Scraptown | Learned Research security intel 9945 | -7/Scraptown | Learned Research emergency access door positions 9947 | -7/Scraptown | Learned 8 Research zone layouts 10122 | -7/Scraptown | Guru changed UFD alias to "Longtalker" 10231 | -7/Scraptown | Visited Bundlers 10380 | -7/Scraptown | Visited Fellowship of the Rings 10421 | -7/Scraptown | Visited TADAMA 10536 | -7/Scraptown | Visited Shadow of the Wyrm 10566 | -7/Scraptown | Visited Symbiants 10720 | -7/Scraptown | Visited Abandonware Association 10734 | -7/Scraptown | Learned abandonware demo "OVRCLOCK.EXE" 10745 | -7/Scraptown | Learned abandonware demo "ERRANTS.EXE" 10794 | -7/Scraptown | Visited Junk Repository 10855 | -7/Scraptown | Visited Chapter 10 11062 | -7/Scraptown | Received an X-ray algorithm 11081 | -7/Scraptown | Delivered Scrap Shield to a Scientist 11271 | -7/Scraptown | Visited Analyses Database 11317 | -7/Scraptown | Visited Curators Association 11349 | -7/Scraptown | Visited Derelict Rescue Squad 11364 | -7/Scraptown | Found DRS Beacon 11449 | -7/Scraptown | Visited Sword Containment 11516 | -7/Scraptown | Visited Scrap Suit Storage 11566 | -7/Scraptown | Visited DA-N13 Charitable Foundation 11574 | -7/Scraptown | Found DCF Scrap (28 items) 12710 | -7/Scraptown | Met Optimus 12710 | -7/Scraptown | Accepted into 0bPrime 12828 | -7/Scraptown | Discovered new exit (range 5) 12838 | -7/Scraptown | Entered Factory 12838 | -5/Factory | Evolved 10 slots: Power x1, Propulsion x1, Utility x8 12839 | -5/Factory | Loaded intel: 26 terminal locations 12842 | -5/Factory | Attached Arachnoskeleton, gained temporary slots: Propulsion x3 12923 | -5/Factory | Identified exit to Upper Caves 12990 | -5/Factory | Tech Extrapolator generated special schematic: Deep Structural Scanner 12991 | -5/Factory | Discovered new exit (range 16) 13066 | -5/Factory | Identified exit to Factory 13102 | -5/Factory | Found Prototype Processor 13102 | -5/Factory | Identified Exp. Targeting Computer 13164 | -5/Factory | Build established: Derelict-Mutant 13421 | -5/Factory | System corruption reached 10% 13502 | -5/Factory | Lost 8 parts (2p3n3u) 13616 | -5/Factory | Sucked down chute 13616 | -5/Factory | Entered Waste 13617 | -5/Waste | Met a frightened Derelict 13620 | -5/Waste | Tech Extrapolator generated special schematic: Machine Rigger 13631 | -5/Waste | Spotted C-40 Crusher 13680 | -5/Waste | Spotted C-40 Crusher 13682 | -5/Waste | Spotted C-40 Crusher 13696 | -5/Waste | Spotted C-40 Crusher 13699 | -5/Waste | Spotted C-40 Crusher 13700 | -5/Waste | Spotted C-40 Crusher 13722 | -5/Waste | Discovered new exit (range 10) 13730 | -5/Waste | Entered Factory 13748 | -5/Factory | Loaded intel: 8 recycling unit locations 13749 | -5/Factory | Build established: Mutant 13832 | -5/Factory | Core integrity fell below 50% 13898 | -5/Factory | Fabricated Machine Rigger? 14018 | -5/Factory | Destroyed 8 combat bots 14022 | -5/Factory | Lost 3 parts (3u) 14176 | -5/Factory | Learned location of Protoforge (-3) 14232 | -5/Factory | Core integrity fell below 20% 14236 | -5/Factory | Destroyed by H-66 Slayer with Heavy Assault Rifle Last Messages --------------- 14219_ Imp. Sensor Array destroyed. 14221_ Lgt. Nuclear Core destroyed. 14223_ System corrupted: Matter fused (-8). 14223_ Triggered Shock Trap. 14223_ The floor emits a surge of raw power. 14223_ System corrupted (+1). 14223_ Penetrated by Slug. 14224_ Lgt. Angular Momentum Engine destroyed. 14227_ K-01 Serf destroyed. 14228_ Tech Extrapolator severed. Companion Sword: "Fine, just brush me aside like I'm nothing, see where that gets you." 14231_ Sub. Shrapnel Launcher destroyed. 14231_ Destroyed Sub. Shrapnel Launcher. 14231_ Cmb. Gravmag System severed. 14231_ Penetrated by Slug. 14232_ Cmb. Gravmag System destroyed. 14233_ Slug penetrates C-35 Carver. 14235_ Cmb. Gravmag System severed. 14236_ Penetrated by Slug. Map ----- +----------------------------------------------------+ | ??"" # ??????????????# #?????????# + | | ???? + ??????????????# #?????????# # | | ?????# ??????????????# #?????????# # | | ?????# ######???????## ##????????# # | | ??#+## !######### ########## # | | ??+ ^ !!!!* + ## | | ??# !! ######### ########## #? | | ??# """ !!#???????######???????# ! !#? | | ??# """ !!!=!########??""" ???????##############? | | ??# """^!!! #??"R""?????????????????????? | | ??# !!! #??" ""?????????????????????? | | ??# #?? ??????????????????????? | | ??# ""Y"" #?? ??????????????????????? | | ??# """"" ####+###?##############?????? | | ## #?# #?????? | | ## ###! / #?????? | | ? * = " !/ #?????? | | ? ## ### """ """ #?????? | | ?? """ ## g #?# """ """ #?????? | | ???""" #### ###?# """ """ #?????? | | ????"" #??# #??## #?????? | | ???? ######### ####??#R#### #?????? | | ???""" ????????# #?????# + ? | | ?????" ?????????#+##????#g#### # | | ?????"????????????? ??# #### ""Y"" #??? | | ?????????????????"" ""?#@# ### """"" #?????? | | ?????????????????"" """#=; ########?????? | | ?????????????????"" T"%c;;; "########??????????? | | ??????????????? """; =c = ???? | | ??????????????????" "" ; h % ???? | | ?????????????????"" ; ???? | | ?????????????????"" ; ????? | | ??????????????? ; ????? | | ?????????????? """ """ # ?????? | | ?????????????#??""" """ # ?????? | | ?????????????????"" """ ################### ?????? | | ?????????????????? ? ?????????????????????????? | | ????????????????????? ?????????????????????????? | | ???????????????????? ?????????????????????????? | | ????????????????????###??????????????????????????? | | ?????????????????????????????????????????????????? | | ?????????????????????????????????????????????????? | | ?????????????????????????????????????????????????? | | ??????????????????????????????????""?????????????? | | ??????????????????????????????????""?????????????? | | ??????????????????????????????????"Y?????????????? | | ??????????????????????????????????""?????????????? | | ??????????????????????????????????""?????????????? | | ?????????????????????????????????????????????????? | | ?????????????????????????????????????????????????? | +----------------------------------------------------+ Best States ------------- Heat Dissipation 40 Energy Generation 27 Energy Capacity 330 Matter Stores 300 Matter Capacity 300 Sight Range 16 Robot Scan Range 15 Terrain Scan Density 10 Jamming Range 14 Armor Coverage 600 Utility Shielding 66 Evasion (%) 55 Melee Accuracy 6 Core Analysis 6 Recoil Reduction 2 Offensive Hacking 22 Authchip Count 5 Item Schematics ----------------- Lgt. Humpback | -5/Factory | Extrapolated Deep Structural Scanner | -5/Factory | Extrapolated Mak. Terrain Scanner | -5/Factory | Extrapolated Microactuators | -5/Factory | Hacked Machine Rigger | -5/Waste | Extrapolated Mak. Coolant Network | -5/Waste | Extrapolated 0b10 Decoder Chip [Scout] | -5/Factory | Extrapolated Mak. Transmission Jammer | -5/Factory | Extrapolated Mak. Hacking Suite | -5/Factory | Extrapolated Hvy. Beamcaster | -5/Factory | Extrapolated Multitool | -5/Factory | Extrapolated 0b10 Decoder Chip [Generic] | -5/Factory | Extrapolated Robot Schematics ------------------ None Fabricated ------------ Machine Rigger | x1 | -5/Factory | Authchip Repaired ---------- Nothing Studied --------- None Alien Tech Used ----------------- None Achievements -------------- Inventory Pressure Longdome?! Scientist At Large Sprinter Challenges ------------ None Game ------ Seed MultinovaTerrorMagmablaster Manual? 0 Play Time 01:00:06 Cumulative 816.0 hours Start 2025.10.27 @ 01:19:01 End 2025.10.27 @ 23:52:30 Sessions 4 Manual Loads 0 Difficulty Rogue Special Mode None Game No. 817 Rogue 817 Adventurer 0 Explorer 0 Win Type - Total 39 Types 14/4/11/2/0/0/5/2/1/0 Lore% 96 Gallery% 86 Achievement% 55 Wizard Run 0 Options --------- Layout 0 ASCII 0 Keyboard 0 Movement Numpad Keybinds 0 Fullscreen 1 Font 18/Smallcaps Map View 76x50 Zoom Use 0% Tactical HUD 1 Map Filters NONE Filters NONE Steam 1 RUN: 57ab9a85-53a8-4177-9f6d-360a2ddcf07a